bitfinex-derivatives/quotes_SOLF0:USTF0_20250530
["timestamp","ask_amount","ask_price","bid_price","bid_amount"]
[1748608738413,6.18831414,162.74,162.71,6.1438]
[1748608740417,0.04521414,162.74,162.72,6.1436]
[1748608741314,0.04521414,162.74,162.71,6.1438]
[1748608741508,6.18831414,162.74,162.7,36.70684068]
[1748608741716,6.18831414,162.74,162.7,42.85084068]
[1748608743415,6.18831414,162.74,162.71,6.1439]
[1748608744210,0.04521414,162.74,162.71,6.1439]
[1748608744424,0.04521414,162.74,162.7,36.70684068]
[1748608745128,0.04521414,162.74,162.73,6.1432]
[1748608746020,38.63,162.84,162.72,6.7656266]
[1748608746122,38.63,162.84,162.73,1.9731]
[1748608746471,532.6034,162.85,162.75,6.7656266]
[1748608746472,2.0434,162.85,162.75,6.7656266]
[1748608746639,2.0434,162.85,162.78,6.7656266]
[1748608746821,0.04301322,162.83,162.8,0.03880012]
[1748608749120,0.04301322,162.83,162.8,6.17910012]
[1748608749319,0.04301322,162.83,162.8,0.03880012]
[1748608749719,6.18261322,162.83,162.8,0.03880012]
[1748608749920,0.04301322,162.83,162.8,0.03880012]
[1748608750924,6.18251322,162.83,162.8,0.03880012]
[1748608752225,0.04301322,162.83,162.8,0.03880012]
[1748608755628,6.18271322,162.83,162.8,0.03880012]
[1748608756025,6.1401,162.82,162.8,0.03880012]
[1748608756229,0.04301322,162.83,162.8,0.03880012]
[1748608756829,6.1402,162.81,162.8,0.03880012]
[1748608757026,0.04301322,162.83,162.8,0.03880012]
[1748608757628,6.1401,162.82,162.8,0.03880012]
[1748608757827,0.04301322,162.83,162.8,0.03880012]
[1748608758624,6.1398,162.82,162.8,0.03880012]
[1748608758821,0.04301322,162.83,162.8,0.03880012]
[1748608759336,0.04301322,162.83,162.81,6.14]
[1748608759633,0.04301322,162.83,162.8,0.03880012]
[1748608759820,0.04301322,162.83,162.81,6.1402]
[1748608760019,0.04301322,162.83,162.8,0.03880012]
[1748608760442,0.04301322,162.83,162.82,6.1398]
[1748608760823,0.04301322,162.83,162.8,0.03880012]
[1748608761024,0.04301322,162.83,162.81,6.1401]
[1748608761426,0.04301322,162.83,162.8,0.03880012]
[1748608761637,0.04301322,162.83,162.82,6.1398]
[1748608763419,0.04301322,162.83,162.81,6.14]
[1748608764134,0.04301322,162.83,162.8,0.03880012]
[1748608765231,0.04301322,162.83,162.81,6.14]
[1748608765529,0.04301322,162.83,162.8,0.03880012]
[1748608765928,6.18251322,162.83,162.8,6.17920012]
[1748608766634,6.18251322,162.83,162.8,0.03880012]
[1748608766838,0.04301322,162.83,162.8,0.03880012]
[1748608767428,6.1402,162.81,162.8,0.03880012]
[1748608768928,6.1414,162.78,162.76,6.1419]
[1748608769136,4.1057,162.83,162.76,6.1419]
[1748608769334,4.1057,162.83,162.77,6.1417]
[1748608769833,6.1412,162.79,162.76,6.1419]
[1748608770140,0.04513195,162.79,162.76,6.18205627]
[1748608771137,6.1414,162.78,162.76,6.18205627]
[1748608771939,6.18633195,162.79,162.76,6.18205627]
[1748608772336,0.04513195,162.79,162.76,6.18205627]
[1748608773239,6.18633195,162.79,162.76,6.18205627]
[1748608775138,6.18633195,162.79,162.76,0.04015627]
[1748608775354,0.04513195,162.79,162.76,0.04015627]
[1748608775533,0.04513195,162.79,162.78,6.1414]
[1748608776240,0.04513195,162.79,162.77,6.1416]
[1748608777146,0.04513195,162.79,162.76,6.18215627]
[1748608777456,0.04513195,162.79,162.76,0.04015627]
[1748608777640,6.1417,162.77,162.76,0.04015627]
[1748608779030,0.04513195,162.79,162.7,36.28]
[1748608779238,36.28,162.8,162.7,36.28]
[1748608779639,6.1434,162.73,162.7,42.4241]
[1748608779946,6.1434,162.73,162.7,36.28]
[1748608780139,6.19032652,162.73,162.7,36.32015097]
[1748608780532,0.04692652,162.73,162.7,0.04015097]
[1748608781143,6.1439,162.72,162.7,0.04015097]
[1748608781937,6.144,162.71,162.7,0.04015097]
[1748608783739,6.1438,162.72,162.7,0.04015097]
[1748608783936,0.04692652,162.73,162.7,0.04015097]
[1748608784340,6.144,162.71,162.7,0.04015097]
[1748608785251,6.1437,162.72,162.7,0.04015097]
[1748608785748,0.04692652,162.73,162.7,0.04015097]
[1748608786848,6.19052652,162.73,162.7,6.18425097]
[1748608787051,0.04692652,162.73,162.7,6.18425097]
[1748608788154,6.1437,162.72,162.7,6.18425097]
[1748608788653,0.04692652,162.73,162.7,0.04015097]
[1748608789365,0.04692652,162.73,162.72,6.1436]
[1748608789656,36.28,162.8,162.7,36.32015097]
[1748608789866,36.28,162.8,162.7,43.0456266]
[1748608789867,6.1416,162.78,162.7,43.0456266]
[1748608790565,6.1416,162.78,162.74,6.1425]
[1748608790762,6.18300586,162.78,162.74,6.18566895]
[1748608791460,6.1418,162.77,162.74,6.18566895]
[1748608791960,6.1418,162.77,162.74,0.04316895]
[1748608792748,6.18290586,162.78,162.74,0.04316895]
[1748608792947,0.04140586,162.78,162.74,0.04316895]
[1748608793346,6.142,162.77,162.74,0.04316895]
[1748608794053,6.18290586,162.78,162.74,6.18596895]
[1748608794965,6.1418,162.77,162.74,0.04316895]
[1748608795360,6.18280586,162.78,162.74,0.04316895]
[1748608795559,0.04140586,162.78,162.74,0.04316895]
[1748608795956,0.04140586,162.78,162.74,6.18596895]
[1748608798158,0.04140586,162.78,162.75,6.1425]
[1748608798582,0.04140586,162.78,162.74,6.18586895]
[1748608798960,0.04140586,162.78,162.74,0.04316895]
[1748608799763,6.18290586,162.78,162.74,6.18586895]
[1748608800260,0.04140586,162.78,162.74,0.04316895]
[1748608800851,0.04140586,162.78,162.76,6.1419]
[1748608801461,0.04140586,162.78,162.75,6.1423]
[1748608802661,0.04140586,162.78,162.74,0.04316895]
[1748608802662,0.04140586,162.78,162.76,6.1421]
[1748608802862,0.04140586,162.78,162.74,0.04316895]
[1748608803064,0.04140586,162.78,162.75,6.1422]
[1748608803397,6.7656266,162.88,162.74,36.14316895]
[1748608803604,40.2537,162.87,162.75,6.7656266]
[1748608803781,6.1399,162.82,162.75,6.7656266]
[1748608804162,40.2537,162.87,162.75,6.7656266]
[1748608804460,6.1407,162.8,162.79,0.04295071]
[1748608804967,36.1,162.82,162.73,2.0062]
[1748608805169,2.0945,162.81,162.71,127.76]
[1748608805558,6.1417,162.78,162.73,6.1429]
[1748608805961,0.04634206,162.77,162.74,0.04613635]
[1748608806667,6.1425,162.75,162.74,0.04613635]
[1748608806864,0.04634206,162.77,162.66,163.84]
[1748608807068,36.1,162.78,162.66,163.84]
[1748608807269,36.1,162.78,162.66,36.1]
[1748608807766,36.1,162.78,162.7,0.04505966]
[1748608807969,0.04156903,162.74,162.7,0.04505966]
[1748608808161,36.14156903,162.74,162.7,0.04505966]
[1748608808967,6.144,162.71,162.7,0.04505966]
[1748608809467,6.1438,162.72,162.7,0.04505966]
[1748608810069,6.144,162.71,162.7,0.04505966]
[1748608810276,36.14156903,162.74,162.7,0.04505966]
[1748608810572,6.144,162.72,162.7,0.04505966]
[1748608811187,6.144,162.71,162.7,0.04505966]
[1748608812071,6.1436,162.73,162.7,0.04505966]
[1748608812670,42.28446903,162.74,162.7,0.04505966]
[1748608812870,36.14156903,162.74,162.7,0.04505966]
[1748608813267,6.1436,162.73,162.7,0.04505966]
[1748608813473,36.14156903,162.74,162.7,0.04505966]
[1748608815177,0.04156903,162.74,162.72,6.1433]
[1748608815863,0.04156903,162.74,162.73,6.1433]
[1748608818403,532.5945,162.81,162.71,1.999]
[1748608818598,2.0945,162.81,162.72,6.7656266]
[1748608818774,8.2349,162.81,162.76,6.1421]
[1748608819178,2.0945,162.81,162.73,127.66]
[1748608819385,0.03905563,162.78,162.76,6.1421]
[1748608819787,0.03905563,162.78,162.75,0.04709602]
[1748608819988,0.03905563,162.78,162.76,6.1418]
[1748608821090,0.03905563,162.78,162.75,6.18939602]
[1748608821584,0.03905563,162.78,162.76,6.142]
[1748608824484,0.03905563,162.78,162.77,6.1417]
[1748608825993,0.03905563,162.78,162.75,0.04709602]
[1748608826491,0.03905563,162.78,162.75,6.18949602]
[1748608827489,0.03905563,162.78,162.76,6.1421]
[1748608827765,0.03905563,162.78,162.75,0.04709602]
[1748608828091,8.2442,162.85,162.8,6.1402]
[1748608828290,2.1052,162.85,162.8,6.1402]
[1748608828498,6.1393,162.84,162.79,6.1409]
[1748608829096,0.04549217,162.83,162.8,0.04549506]
[1748608829789,0.04549217,162.83,162.8,6.18599506]
[1748608829994,0.04549217,162.83,162.8,0.04549506]
[1748608830901,0.04549217,162.83,162.82,6.1399]
[1748608835108,566.52,162.89,162.85,6.1386]
[1748608835338,566.52,162.89,162.8,134.35112166]
[1748608835339,35.94,162.89,162.83,6.7656266]
[1748608835500,38.0846,162.93,162.83,6.7656266]
[1748608836198,0.04303207,162.9,162.86,0.04543916]
[1748608836397,6.18013207,162.9,162.86,0.04543916]
[1748608836702,0.04303207,162.9,162.86,0.04543916]
[1748608838102,0.04303207,162.9,162.87,6.1378]
[1748608838297,0.04303207,162.9,162.86,0.04543916]
[1748608838632,0.04303207,162.9,162.87,6.7656266]
[1748608839195,0.04303207,162.9,162.89,6.1372]
[1748608839601,568.3331,162.97,162.87,6.7656266]
[1748608839800,568.3331,162.97,162.91,6.1362]
[1748608840295,6.1352,162.95,162.91,6.1362]
[1748608840602,0.03983831,162.95,162.91,0.03878584]
[1748608841197,0.03983831,162.95,162.91,6.17508584]
[1748608841615,0.03983831,162.95,162.91,0.03878584]
[1748608841802,0.03983831,162.95,162.93,6.1357]
[1748608842115,0.03983831,162.95,162.91,0.03878584]
[1748608842304,0.03983831,162.95,162.91,6.17508584]
[1748608842504,0.03983831,162.95,162.91,0.03878584]
[1748608842902,0.03983831,162.95,162.92,6.1359]
[1748608845904,0.03983831,162.95,162.91,0.03878584]
[1748608845905,0.03983831,162.95,162.93,6.1356]
[1748608847302,0.03983831,162.95,162.94,6.1354]
[1748608847559,35.92,163.02,162.92,6.7656266]
[1748608847720,35.92,163.02,162.98,6.1337]
[1748608848006,35.92,163.02,162.95,6.7656266]
[1748608848408,0.04281068,163.0,162.97,0.04190706]
[1748608849011,0.04281068,163.0,162.98,6.1336]
[1748608849407,0.04281068,163.0,162.99,6.1335]
[1748608852613,0.04281068,163.0,162.97,0.04190706]
[1748608853210,6.17631068,163.0,162.97,0.04190706]
[1748608853607,0.04281068,163.0,162.97,0.04190706]
[1748608853810,6.1338,162.99,162.97,0.04190706]
[1748608854211,0.04281068,163.0,162.97,0.04190706]
[1748608854914,6.1339,162.98,162.97,0.04190706]
[1748608855512,0.04281068,163.0,162.97,0.04190706]
[1748608856318,6.1339,162.98,162.97,0.04190706]
[1748608856620,0.04281068,163.0,162.9,165.0407]
[1748608856825,4.015,163.0,162.9,165.0407]
[1748608857615,0.03879606,162.97,162.93,6.18052352]
[1748608858123,0.03879606,162.97,162.93,0.04472352]
[1748608858415,6.17329606,162.97,162.93,0.04472352]
[1748608858721,0.03879606,162.97,162.93,0.04472352]
[1748608859619,6.1354,162.95,162.93,0.04472352]
[1748608860566,6.1348,162.96,162.93,0.04472352]
[1748608861023,0.03879606,162.97,162.93,0.04472352]
[1748608861024,6.1351,162.95,162.93,0.04472352]
[1748608862323,6.1354,162.94,162.93,0.04472352]
[1748608862830,6.1362,162.92,162.89,149.51408421]
[1748608863090,6.1362,162.92,162.86,35.76]
[1748608863220,6.1362,162.92,162.88,6.1375]
[1748608863829,6.18019636,162.92,162.88,6.17628198]
[1748608864325,0.04399636,162.92,162.88,0.03878198]
[1748608864714,6.18029636,162.92,162.89,6.1372]
[1748608864918,0.04399636,162.92,162.88,0.03878198]
[1748608865320,0.04399636,162.92,162.91,6.1366]
[1748608870325,35.76,162.99,162.95,6.135]
[1748608870628,41.8936,162.99,162.95,6.135]
[1748608871447,41.93548871,162.99,162.95,6.17700636]
[1748608872924,6.134,162.98,162.95,0.04200636]
[1748608875230,41.93558871,162.99,162.95,6.17710636]
[1748608876824,35.80188871,162.99,162.95,6.17710636]
[1748608877040,6.1341,162.98,162.95,6.17710636]
[1748608877550,41.93558871,162.99,162.96,6.1347]
[1748608877937,41.93558871,162.99,162.95,0.04200636]
[1748608878236,6.1341,162.98,162.95,0.04200636]
[1748608878628,6.1341,162.98,162.95,6.17710636]
[1748608881738,6.1344,162.97,162.95,0.04200636]
[1748608882544,6.1344,162.97,162.95,6.17710636]
[1748608884241,6.1344,162.97,162.95,0.04200636]
[1748608884748,6.1347,162.96,162.95,0.04200636]
[1748608884948,35.80188871,162.99,162.9,35.76]
[1748608885148,35.76,162.99,162.88,126.96]
[1748608885346,35.76,162.99,162.89,6.1371]
[1748608885542,35.76,162.99,162.86,42.5256266]
[1748608885738,6.1366,162.91,162.87,126.96]
[1748608885945,6.18160809,162.91,162.87,127.00315633]
[1748608886258,0.04500809,162.91,162.87,127.00315633]
[1748608886443,0.04500809,162.91,162.87,0.04315633]
[1748608886643,0.04500809,162.91,162.88,6.1374]
[1748608888852,0.04500809,162.91,162.87,0.04315633]
[1748608889646,6.1376,162.89,162.87,0.04315633]
[1748608890448,0.04500809,162.91,162.87,0.04315633]
[1748608890855,0.04500809,162.91,162.9,6.1371]
[1748608891044,0.04500809,162.91,162.87,0.04315633]
[1748608891450,0.04500809,162.91,162.89,6.1374]
[1748608891649,0.04500809,162.91,162.87,0.04315633]
[1748608892750,6.18180809,162.91,162.87,0.04315633]
[1748608893153,6.18180809,162.91,162.88,6.1376]
[1748608895358,0.04500809,162.91,162.87,6.18125633]
[1748608896252,6.1375,162.89,162.87,0.04315633]
[1748608896448,0.04500809,162.91,162.87,0.04315633]
[1748608896756,6.1378,162.88,162.87,0.04315633]
[1748608897255,35.66500809,162.91,162.87,0.04315633]
[1748608897562,6.1377,162.89,162.87,0.04315633]
[1748608897769,35.66500809,162.91,162.87,0.04315633]
[1748608897972,6.1375,162.89,162.87,0.04315633]
[1748608899463,6.1378,162.88,162.87,0.04315633]
[1748608901360,6.1376,162.89,162.87,0.04315633]
[1748608901760,35.66500809,162.91,162.87,0.04315633]
[1748608901968,6.1378,162.88,162.87,0.04315633]
[1748608902671,6.1376,162.89,162.87,0.04315633]
[1748608903163,35.66500809,162.91,162.87,0.04315633]
[1748608905273,41.80180809,162.91,162.88,6.1375]
[1748608905469,35.66500809,162.91,162.87,0.04315633]
[1748608906473,6.1373,162.9,162.87,0.04315633]
[1748608906772,35.66500809,162.91,162.87,0.04315633]
[1748608907877,6.1378,162.88,162.87,0.04315633]
[1748608911379,6.1376,162.89,162.87,0.04315633]
[1748608911580,35.66500809,162.91,162.87,0.04315633]
[1748608911976,6.1373,162.9,162.87,0.04315633]
[1748608913082,6.1373,162.9,162.87,6.18115633]
[1748608913279,41.80170809,162.91,162.87,0.04315633]
[1748608913479,0.04500809,162.91,162.87,0.04315633]
[1748608913675,0.04500809,162.91,162.9,6.1371]
[1748608925384,35.62,162.95,162.94,6.1355]
[1748608925684,6.1345,162.97,162.94,6.1355]
[1748608925892,6.1345,162.97,162.95,6.1352]
[1748608926084,6.1345,162.97,162.88,133.4656266]
[1748608926388,0.04139942,162.94,162.91,0.04191219]
[1748608926598,0.04139942,162.94,162.93,6.1359]
[1748608929068,35.46,162.99,162.91,0.04191219]
[1748608929069,35.46,162.99,162.91,6.80753879]
[1748608929221,565.34,163.03,162.94,6.7656266]
[1748608929522,565.34,163.03,162.98,6.1337]
[1748608929694,6.133,163.01,162.98,6.1337]
[1748608930186,6.17333415,163.01,162.98,6.1796507]
[1748608930391,0.04033415,163.01,162.98,0.0459507]
[1748608930988,0.04033415,163.01,162.99,6.1334]
[1748608931389,0.04033415,163.01,162.98,6.1798507]
[1748608931897,6.17333415,163.01,162.98,6.1798507]
[1748608932088,0.04033415,163.01,162.98,0.0459507]
[1748608932892,6.17343415,163.01,162.98,6.1798507]
[1748608933489,0.04033415,163.01,162.99,6.1337]
[1748608933698,0.04033415,163.01,162.98,0.0459507]
[1748608934690,0.04033415,163.01,162.98,6.8115773]
[1748608934893,0.04033415,163.01,163.0,6.1333]
[1748608935995,35.44,163.07,163.03,6.1318]
[1748608936276,35.44,163.07,163.01,6.7656266]
[1748608936483,567.4859,163.11,163.01,42.2056266]
[1748608936597,567.4859,163.11,163.05,6.1312]
[1748608936996,567.4859,163.11,163.06,0.04301514]
[1748608937208,0.04187525,163.1,163.06,6.17371514]
[1748608937693,6.13,163.09,163.06,0.04301514]
[1748608937898,0.04187525,163.1,163.06,0.04301514]
[1748608938500,0.04187525,163.1,163.06,6.80864174]
[1748608938834,2.0459,163.18,163.09,6.7656266]
[1748608938994,37.4859,163.18,163.09,6.7656266]
[1748608939197,37.4859,163.18,163.12,6.7656266]
[1748608939505,37.4859,163.18,163.13,6.1281]
[1748608939692,37.4859,163.18,163.12,6.7656266]
[1748608939897,0.04293935,163.17,163.13,0.0403589]
[1748608940397,6.16993935,163.17,163.13,0.0403589]
[1748608941195,6.128,163.14,163.13,0.0403589]
[1748608941788,0.04293935,163.17,163.05,35.42]
[1748608941994,37.4859,163.18,163.05,168.6056266]
[1748608942194,37.4859,163.18,163.07,6.1305]
[1748608942390,37.4859,163.18,163.05,168.6056266]
[1748608942595,6.129,163.12,163.05,168.6056266]
[1748608942800,0.04715223,163.1,163.07,6.16963753]
[1748608942997,0.04492257,163.1,163.07,6.16966068]
[1748608943501,0.04492257,163.1,163.07,0.03906068]
[1748608943699,6.17472257,163.1,163.07,0.03906068]
[1748608944098,0.04492257,163.1,163.07,0.03906068]
[1748608945601,6.17472257,163.1,163.07,0.03906068]
[1748608945800,0.04492257,163.1,163.07,0.03906068]
[1748608946202,6.1303,163.08,163.07,0.03906068]
[1748608949800,0.04492257,163.1,163.07,0.03906068]
[1748608950206,0.04492257,163.1,163.07,6.16956068]
[1748608950703,0.04492257,163.1,163.07,0.03906068]
[1748608951600,0.04492257,163.1,163.08,6.13]
[1748608951802,0.04492257,163.1,163.07,0.03906068]
[1748608952696,0.04492257,163.1,163.09,6.1299]
[1748608953612,0.04492257,163.1,163.08,6.1302]
[1748608953822,0.04492257,163.1,163.07,0.03906068]
[1748608954509,0.04492257,163.1,163.09,6.1299]
[1748608961518,1.9614,163.16,163.13,6.1282]
[1748608961917,8.0888,163.16,163.13,6.1282]
[1748608962319,1.9614,163.16,163.13,6.1282]
[1748608962521,2.00817967,163.16,163.13,6.17264982]
[1748608962810,0.04677967,163.16,163.14,6.1279]
[1748608963011,0.04677967,163.16,163.13,0.04444982]
[1748608963214,0.04677967,163.16,163.14,6.1277]
[1748608965015,6.17407967,163.16,163.13,6.17264982]
[1748608965708,0.04677967,163.16,163.14,6.1279]
[1748608965913,0.04677967,163.16,163.13,0.04444982]
[1748608966110,0.04677967,163.16,163.15,6.1276]
[1748608971320,2.1182,163.21,163.18,6.1264]
[1748608971830,8.2438,163.21,163.18,6.1264]
[1748608972029,2.1182,163.21,163.18,6.1264]
[1748608972222,2.16375661,163.21,163.18,0.04262739]
[1748608972416,0.04555661,163.21,163.18,0.04262739]
[1748608973026,6.126,163.2,163.18,0.04262739]
[1748608973929,6.126,163.2,163.18,6.16902739]
[1748608975827,6.1261,163.19,163.18,0.04262739]
[1748608976028,0.04555661,163.21,163.18,0.04262739]
[1748608976423,6.1259,163.2,163.18,6.16902739]
[1748608976828,0.04555661,163.21,163.18,0.04262739]
[1748608977335,6.1261,163.19,163.18,0.04262739]
[1748608977630,0.04555661,163.21,163.18,0.04262739]
[1748608978727,0.04555661,163.21,163.19,6.1259]
[1748608980229,6.17095661,163.21,163.19,6.1259]
[1748608980428,0.04555661,163.21,163.2,6.1258]
[1748608984930,0.04555661,163.21,163.18,0.04262739]
[1748608985628,6.126,163.2,163.18,0.04262739]
[1748608986428,6.126,163.2,163.18,6.16902739]
[1748608986937,6.1261,163.19,163.18,0.04262739]
[1748608987234,0.04555661,163.21,163.18,0.04262739]
[1748608987438,6.126,163.2,163.18,0.04262739]
[1748608989138,0.04555661,163.21,163.18,0.04262739]
[1748608989139,6.1261,163.19,163.18,0.04262739]
[1748608989529,0.04555661,163.21,163.18,0.04262739]
[1748608990136,0.04555661,163.21,163.2,6.1258]
[1748608990635,0.04555661,163.21,163.18,0.04262739]
[1748608991942,0.04555661,163.21,163.2,6.1258]
[1748608992839,37.0564,163.27,163.24,6.1242]
[1748608993431,43.1798,163.27,163.24,6.1242]
[1748608993834,0.04109371,163.27,163.24,0.04100001]
[1748608994340,35.1,163.31,163.25,6.7656266]
[1748608994341,6.122,163.31,163.25,6.7656266]
[1748608994541,6.122,163.31,163.24,0.04100001]
[1748608994838,6.1223,163.3,163.26,6.1233]
[1748608995044,2.0915,163.33,163.22,2.0836]
[1748608995243,2.0915,163.33,163.22,8.8492266]
[1748608995440,2.0915,163.33,163.26,0.0414953]
[1748608996044,6.1231,163.27,163.26,0.0414953]
[1748608996246,35.1,163.29,163.21,35.1]
[1748608996541,35.1,163.29,163.18,167.7856266]
[1748608996542,2.1545,163.28,163.18,167.7856266]
[1748608997045,6.1246,163.24,163.18,167.7856266]
[1748608997345,0.04089104,163.23,163.19,0.04590477]
[1748608998635,6.1254,163.21,163.19,0.04590477]
[1748608999247,6.1251,163.22,163.19,6.17200477]
[1748608999549,0.04089104,163.23,163.19,0.04590477]
[1748608999747,0.04089104,163.23,163.2,6.1255]
[1748609000756,6.16569104,163.23,163.2,6.1255]
[1748609001554,6.16569104,163.23,163.21,6.1253]
[1748609001742,0.04089104,163.23,163.21,6.1253]
[1748609002047,0.04089104,163.23,163.19,0.04590477]
[1748609002945,0.04089104,163.23,163.22,6.125]
[1748609003750,0.04089104,163.23,163.21,6.1253]
[1748609004145,0.04089104,163.23,163.22,6.125]
[1748609004350,6.16559104,163.23,163.19,0.04590477]
[1748609004546,0.04089104,163.23,163.19,0.04590477]
[1748609005651,6.16559104,163.23,163.19,0.04590477]
[1748609006040,0.04089104,163.23,163.19,0.04590477]
[1748609006855,6.16579104,163.23,163.2,6.1255]
[1748609007345,6.1254,163.21,163.19,0.04590477]
[1748609007552,0.04089104,163.23,163.19,0.04590477]
[1748609007752,0.04089104,163.23,163.14,35.1]
[1748609008053,0.04089104,163.23,163.14,6.1277]
[1748609008851,0.04089104,163.23,163.17,0.03917683]
[1748609009051,0.0394448,163.22,163.17,0.03917683]
[1748609009253,6.1263,163.19,163.17,0.03917683]
[1748609011750,6.1259,163.2,163.17,0.03917683]
[1748609012055,35.1,163.21,163.17,0.03917683]
[1748609012258,6.1261,163.2,163.17,0.03917683]
[1748609012853,6.1261,163.19,163.17,0.03917683]
[1748609013455,6.1265,163.18,163.17,0.03917683]
[1748609014751,37.1691,163.21,163.17,0.03917683]
[1748609014752,2.0691,163.21,163.17,0.03917683]
[1748609014959,0.0394448,163.22,163.17,0.03917683]
[1748609015451,6.126,163.2,163.17,6.16577683]
[1748609015852,0.0394448,163.22,163.17,0.03917683]
[1748609016048,6.1258,163.2,163.17,6.16577683]
[1748609016646,6.1254,163.21,163.18,6.1265]
[1748609016852,0.0394448,163.22,163.17,0.03917683]
[1748609017055,6.1258,163.2,163.17,6.16577683]
[1748609017355,0.0394448,163.22,163.17,0.03917683]
[1748609017757,6.1257,163.21,163.18,6.1263]
[1748609017956,0.0394448,163.22,163.18,6.1263]
[1748609018460,6.1256,163.21,163.18,6.1263]
[1748609019153,6.1646448,163.22,163.19,6.1261]
[1748609019460,0.0394448,163.22,163.17,0.03917683]
[1748609019660,6.1644448,163.22,163.17,0.03917683]
[1748609020159,0.0394448,163.22,163.17,0.03917683]
[1748609020555,0.0394448,163.22,163.2,6.1256]
[1748609021153,0.0394448,163.22,163.17,0.03917683]
[1748609021955,0.0394448,163.22,163.21,6.1254]
[1748609022360,35.0,163.29,163.21,125.8]
[1748609022663,35.0,163.29,163.26,6.1233]
[1748609022961,6.1228,163.28,163.26,6.1233]
[1748609023261,35.04621476,163.29,163.25,6.16989878]
[1748609023657,6.1231,163.28,163.25,6.16989878]
[1748609024259,6.1232,163.27,163.25,6.16989878]
[1748609024459,6.1232,163.27,163.25,0.04609878]
[1748609024658,35.04621476,163.29,163.25,0.04609878]
[1748609025261,6.1235,163.26,163.25,0.04609878]
[1748609027767,6.1233,163.27,163.25,0.04609878]
[1748609028662,6.1229,163.28,163.25,0.04609878]
[1748609028970,6.1229,163.28,163.25,6.16989878]
[1748609032158,0.04621476,163.29,163.25,0.04609878]
[1748609033466,6.1235,163.26,163.25,0.04609878]
[1748609038573,6.1234,163.27,163.25,0.04609878]
[1748609039874,6.1235,163.26,163.25,0.04609878]
[1748609040472,6.1233,163.27,163.25,0.04609878]
[1748609041576,6.1235,163.26,163.25,0.04609878]
[1748609049182,6.1233,163.27,163.25,0.04609878]
[1748609049476,0.04621476,163.29,163.25,0.04609878]
[1748609049678,6.1229,163.28,163.25,6.16959878]
[1748609049886,0.04621476,163.29,163.25,0.04609878]
[1748609050787,6.1233,163.27,163.25,0.04609878]
[1748609050983,6.1233,163.27,163.25,6.16989878]
[1748609051990,6.1228,163.28,163.25,6.16989878]
[1748609052189,0.04621476,163.29,163.25,0.04609878]
[1748609052390,0.04621476,163.29,163.25,6.81172538]
[1748609052894,6.1204,163.35,163.28,6.7656266]
[1748609053189,2.1015,163.36,163.33,6.1207]
[1748609053393,8.2214,163.36,163.33,6.1207]
[1748609053592,6.1199,163.36,163.33,6.1207]
[1748609053794,34.9,163.37,163.34,6.1204]
[1748609054289,34.9,163.37,163.33,0.04197088]
[1748609054495,37.0015,163.41,163.33,0.04197088]
[1748609054995,6.1187,163.39,163.36,6.1195]
[1748609055197,6.1187,163.39,163.36,0.04300501]
[1748609055394,6.1183,163.4,163.37,6.1193]
[1748609056196,37.0015,163.41,163.36,0.04300501]
[1748609056786,12.2279,163.52,163.37,125.56]
[1748609056988,6.7656266,163.49,163.43,0.03927205]
[1748609057192,6.117,163.44,163.43,0.03927205]
[1748609057885,10.1985,163.44,163.43,7.205e-05]
[1748609058096,6.0431,163.44,163.32,2.0953]
[1748609058798,6.0431,163.44,163.31,41.6456266]
[1748609058993,6.1194,163.37,163.36,0.04466528]
[1748609065502,1.9541,163.38,163.36,0.04466528]
[1748609066098,6.1194,163.37,163.36,0.04466528]
[1748609068505,8.0732,163.38,163.36,0.04466528]
[1748609068706,1.9541,163.38,163.36,0.04466528]
[1748609070000,34.92004555,163.39,163.36,0.04466528]
[1748609071099,41.03884555,163.39,163.36,6.16436528]
[1748609071595,6.1191,163.38,163.36,0.04466528]
[1748609071803,34.92004555,163.39,163.36,0.04466528]
[1748609072104,0.04004555,163.39,163.36,0.04466528]
[1748609072697,6.15894555,163.39,163.36,0.04466528]
[1748609073103,0.04004555,163.39,163.36,6.16436528]
[1748609073295,34.76,163.38,163.36,0.04466528]
[1748609074303,6.1194,163.37,163.36,0.04466528]
[1748609074799,6.1203,163.35,163.32,6.1212]
[1748609075200,34.76,163.38,163.31,34.88]
[1748609075602,6.1205,163.34,163.31,6.1214]
[1748609075802,6.16618245,163.34,163.31,6.16238293]